[Event "*** SCC Grand Prix: Titled Tuesday Blitz"]
[Site "Chess.com"]
[Date "2020.08.25"]
[Round "2"]
[White "Borsuk_Konstantin"]
[Black "Shield12"]
[Result "0-1"]
[WhiteElo "2540"]
[BlackElo "2860"]
[TimeControl "180+1"]
[EndTime "10:18:49 PDT"]
[Termination "Shield12 won by resignation"]

1. d4 {[%clk 0:03:00.9]} 1... Nf6 {[%clk 0:02:59.9]} 2. c4 {[%clk 0:03:00.8]}
2... e6 {[%clk 0:03:00.5]} 3. Nc3 {[%clk 0:03:01.2]} 3... Bb4 {[%clk 0:03:00.2]}
4. Qc2 {[%clk 0:03:01.2]} 4... O-O {[%clk 0:02:58.6]} 5. a3 {[%clk 0:03:01.1]}
5... Bxc3+ {[%clk 0:02:58.5]} 6. Qxc3 {[%clk 0:03:02]} 6... b6 {[%clk
0:02:59.4]} 7. Bg5 {[%clk 0:03:01.9]} 7... c5 {[%clk 0:03:00]} 8. dxc5 {[%clk
0:02:57.6]} 8... bxc5 {[%clk 0:03:00.9]} 9. Bxf6 {[%clk 0:02:47.2]} 9... Qxf6
{[%clk 0:03:00.7]} 10. Qxf6 {[%clk 0:02:46.8]} 10... gxf6 {[%clk 0:03:01.6]} 11.
O-O-O {[%clk 0:02:28.9]} 11... Nc6 {[%clk 0:03:00]} 12. h4 {[%clk 0:02:23.8]}
12... Rd8 {[%clk 0:02:57]} 13. h5 {[%clk 0:02:23.8]} 13... h6 {[%clk 0:02:51.9]}
14. Rh4 {[%clk 0:02:22.2]} 14... Rb8 {[%clk 0:02:48.1]} 15. Rd3 {[%clk
0:02:19.7]} 15... Kf8 {[%clk 0:02:45.2]} 16. Rg3 {[%clk 0:02:13]} 16... Ba6
{[%clk 0:02:38.1]} 17. e3 {[%clk 0:02:08.7]} 17... Rb3 {[%clk 0:02:30.9]} 18.
Rhg4 {[%clk 0:02:07.9]} 18... Ke7 {[%clk 0:02:27.6]} 19. Rg8 {[%clk 0:02:07.8]}
19... Rbb8 {[%clk 0:02:08.3]} 20. Rxd8 {[%clk 0:02:05.3]} 20... Rxd8 {[%clk
0:02:09.2]} 21. Nf3 {[%clk 0:01:45.6]} 21... f5 {[%clk 0:02:07.4]} 22. Nd2
{[%clk 0:01:39.4]} 22... Kf6 {[%clk 0:02:01.5]} 23. Kc2 {[%clk 0:01:38.5]} 23...
Ne5 {[%clk 0:01:54.9]} 24. f3 {[%clk 0:01:36.8]} 24... d6 {[%clk 0:01:49.3]} 25.
f4 {[%clk 0:01:02.6]} 25... Nd7 {[%clk 0:01:35.7]} 26. Bd3 {[%clk 0:00:53.7]}
26... d5 {[%clk 0:01:19.5]} 27. b3 {[%clk 0:00:46.1]} 27... Nb6 {[%clk
0:01:17.9]} 28. Be2 {[%clk 0:00:37.6]} 28... Nc8 {[%clk 0:01:09.8]} 29. Bd3
{[%clk 0:00:31.6]} 29... Nd6 {[%clk 0:01:07.5]} 30. Be2 {[%clk 0:00:22.8]} 30...
Ne4 {[%clk 0:00:56.5]} 31. Nxe4+ {[%clk 0:00:22.2]} 31... fxe4 {[%clk
0:00:57.4]} 32. Rh3 {[%clk 0:00:19.4]} 32... d4 {[%clk 0:00:55.1]} 33. Kb2
{[%clk 0:00:16.1]} 33... e5 {[%clk 0:00:47.8]} 34. fxe5+ {[%clk 0:00:07.1]}
34... Kxe5 {[%clk 0:00:48.7]} 35. Rf3 {[%clk 0:00:05.9]} 35... exf3 {[%clk
0:00:48.3]} 0-1

[Event "*** SCC Grand Prix: Titled Tuesday Blitz"]
[Site "Chess.com"]
[Date "2020.08.25"]
[Round "2"]
[White "sergeikim"]
[Black "mfwagnerpeixoto"]
[Result "1-0"]
[WhiteElo "2502"]
[BlackElo "2273"]
[TimeControl "180+1"]
[EndTime "10:18:49 PDT"]
[Termination "sergeikim won on time"]

1. d4 {[%clk 0:03:00.9]} 1... e6 {[%clk 0:02:57.5]} 2. c4 {[%clk 0:03:00.8]}
2... f5 {[%clk 0:02:55.5]} 3. g3 {[%clk 0:03:00.1]} 3... Nf6 {[%clk 0:02:55.5]}
4. Bg2 {[%clk 0:03:00.6]} 4... d5 {[%clk 0:02:55]} 5. Nd2 {[%clk 0:02:58.7]}
5... c6 {[%clk 0:02:55.3]} 6. Nh3 {[%clk 0:02:58.9]} 6... Bd6 {[%clk 0:02:54.4]}
7. O-O {[%clk 0:02:58.6]} 7... O-O {[%clk 0:02:53.2]} 8. Qc2 {[%clk 0:02:58.7]}
8... b6 {[%clk 0:02:51.6]} 9. Nf3 {[%clk 0:02:58.5]} 9... Bb7 {[%clk 0:02:48.5]}
10. Nf4 {[%clk 0:02:57.5]} 10... Qe8 {[%clk 0:02:38.8]} 11. Nd3 {[%clk
0:02:57.3]} 11... Nbd7 {[%clk 0:02:33.7]} 12. b4 {[%clk 0:02:55.7]} 12... Rc8
{[%clk 0:02:28.6]} 13. c5 {[%clk 0:02:55.5]} 13... Bb8 {[%clk 0:02:26.8]} 14.
Bf4 {[%clk 0:02:55.3]} 14... Ne4 {[%clk 0:02:22.6]} 15. Bxb8 {[%clk 0:02:45.1]}
15... Rxb8 {[%clk 0:02:23.5]} 16. a4 {[%clk 0:02:43.4]} 16... Ba6 {[%clk
0:02:19.9]} 17. b5 {[%clk 0:02:38]} 17... cxb5 {[%clk 0:02:17.7]} 18. c6 {[%clk
0:02:36.4]} 18... Qc8 {[%clk 0:01:53.3]} 19. Rfc1 {[%clk 0:02:23.3]} 19... Ndf6
{[%clk 0:01:47.5]} 20. axb5 {[%clk 0:02:10.1]} 20... Bxb5 {[%clk 0:01:45.3]} 21.
Rxa7 {[%clk 0:02:09.6]} 21... Ng4 {[%clk 0:01:35.6]} 22. Nfe5 {[%clk 0:01:57.9]}
22... Bxd3 {[%clk 0:01:26.5]} 23. Nxd3 {[%clk 0:01:56.4]} 23... f4 {[%clk
0:01:20.4]} 24. Bxe4 {[%clk 0:01:50.1]} 24... dxe4 {[%clk 0:01:16.8]} 25. Nxf4
{[%clk 0:01:49.5]} 25... e5 {[%clk 0:00:43.7]} 26. dxe5 {[%clk 0:01:39.6]} 26...
Qf5 {[%clk 0:00:35.7]} 27. Qc4+ {[%clk 0:01:31]} 27... Kh8 {[%clk 0:00:34.2]}
28. Qe6 {[%clk 0:01:30.8]} 28... Qg5 {[%clk 0:00:30.5]} 29. Qe7 {[%clk
0:01:26.7]} 29... Qxe7 {[%clk 0:00:24.6]} 30. Rxe7 {[%clk 0:01:25.5]} 30... b5
{[%clk 0:00:16.4]} 31. c7 {[%clk 0:01:08.2]} 31... Rbc8 {[%clk 0:00:15.5]} 32.
Ne6 {[%clk 0:01:01.4]} 32... Rg8 {[%clk 0:00:11.5]} 33. Ng5 {[%clk 0:00:53]}
33... h6 {[%clk 0:00:08.7]} 34. Nxe4 {[%clk 0:00:51.9]} 34... b4 {[%clk
0:00:06.1]} 35. h3 {[%clk 0:00:51]} 1-0

[Event "*** SCC Grand Prix: Titled Tuesday Blitz"]
[Site "Chess.com"]
[Date "2020.08.25"]
[Round "2"]
[White "serhanberat_ozdemir"]
[Black "Dedic8"]
[Result "0-1"]
[WhiteElo "2492"]
[BlackElo "2744"]
[TimeControl "180+1"]
[EndTime "10:18:53 PDT"]
[Termination "Dedic8 won by checkmate"]

1. e4 {[%clk 0:03:00.8]} 1... e5 {[%clk 0:03:00.3]} 2. Nf3 {[%clk 0:03:01.2]}
2... Nc6 {[%clk 0:03:00.9]} 3. d4 {[%clk 0:03:01.7]} 3... exd4 {[%clk
0:03:00.8]} 4. Bc4 {[%clk 0:03:02.3]} 4... Nf6 {[%clk 0:03:00.7]} 5. e5 {[%clk
0:03:02]} 5... d5 {[%clk 0:03:00.7]} 6. Bb5 {[%clk 0:03:02.3]} 6... Ne4 {[%clk
0:03:01.2]} 7. Nxd4 {[%clk 0:03:02.6]} 7... Bd7 {[%clk 0:03:01.7]} 8. Bxc6
{[%clk 0:03:02.9]} 8... bxc6 {[%clk 0:03:02.6]} 9. O-O {[%clk 0:03:03.4]} 9...
Bc5 {[%clk 0:03:02.2]} 10. f3 {[%clk 0:03:03.8]} 10... Ng5 {[%clk 0:03:02.3]}
11. f4 {[%clk 0:03:04.2]} 11... Ne4 {[%clk 0:03:02.9]} 12. Be3 {[%clk
0:03:04.7]} 12... Qb8 {[%clk 0:03:03.6]} 13. Nc3 {[%clk 0:02:36.5]} 13... Nxc3
{[%clk 0:02:53.1]} 14. bxc3 {[%clk 0:02:37.4]} 14... Kf8 {[%clk 0:02:42.8]} 15.
f5 {[%clk 0:02:33]} 15... Qc8 {[%clk 0:02:42.1]} 16. e6 {[%clk 0:02:27.7]} 16...
Bxd4 {[%clk 0:02:18.6]} 17. Bxd4 {[%clk 0:02:18.6]} 17... Be8 {[%clk 0:02:18.7]}
18. Qg4 {[%clk 0:02:14.5]} 18... f6 {[%clk 0:02:16.7]} 19. Rae1 {[%clk
0:02:03.1]} 19... h5 {[%clk 0:02:13.8]} 20. Qh4 {[%clk 0:02:00.9]} 20... Rh6
{[%clk 0:02:04.9]} 21. Be3 {[%clk 0:02:00.4]} 21... Rh7 {[%clk 0:02:01.9]} 22.
Bd4 {[%clk 0:01:36.9]} 22... Kg8 {[%clk 0:01:36.7]} 23. Rf3 {[%clk 0:01:31.7]}
23... Qd8 {[%clk 0:01:31.7]} 24. Rg3 {[%clk 0:01:26.1]} 24... Kh8 {[%clk
0:00:58.1]} 25. e7 {[%clk 0:01:08.6]} 25... Qd6 {[%clk 0:00:58.2]} 26. Re6
{[%clk 0:01:06.3]} 26... Qa3 {[%clk 0:00:58.1]} 27. h3 {[%clk 0:00:34.6]} 27...
Bd7 {[%clk 0:00:57]} 28. Rxf6 {[%clk 0:00:33.7]} 28... Qxe7 {[%clk 0:00:56.8]}
29. Rxg7 {[%clk 0:00:04.8]} 29... Rxg7 {[%clk 0:00:56.9]} 30. Rh6+ {[%clk
0:00:05.2]} 30... Kg8 {[%clk 0:00:57.3]} 31. Qxh5 {[%clk 0:00:05.8]} 31... Rh7
{[%clk 0:00:46.4]} 32. Qg6+ {[%clk 0:00:06]} 32... Rg7 {[%clk 0:00:46.2]} 33.
Qh5 {[%clk 0:00:06.6]} 33... Qe1+ {[%clk 0:00:45.3]} 34. Kh2 {[%clk 0:00:06.4]}
34... Qg3+ {[%clk 0:00:45.5]} 35. Kh1 {[%clk 0:00:06]} 35... Qxg2# {[%clk
0:00:46.4]} 0-1

[Event "*** SCC Grand Prix: Titled Tuesday Blitz"]
[Site "Chess.com"]
[Date "2020.08.25"]
[Round "2"]
[White "Kaliopa"]
[Black "x-6099009240"]
[Result "1-0"]
[WhiteElo "2204"]
[BlackElo "2410"]
[TimeControl "180+1"]
[EndTime "10:18:54 PDT"]
[Termination "Kaliopa won by checkmate"]

1. d4 {[%clk 0:03:00.9]} 1... Nf6 {[%clk 0:02:59.8]} 2. c4 {[%clk 0:03:00.1]}
2... e6 {[%clk 0:03:00.4]} 3. Nc3 {[%clk 0:02:59.3]} 3... Bb4 {[%clk 0:03:00.5]}
4. e3 {[%clk 0:02:58.8]} 4... b6 {[%clk 0:03:01]} 5. Ne2 {[%clk 0:02:54.5]} 5...
Bb7 {[%clk 0:02:58.5]} 6. a3 {[%clk 0:02:48.4]} 6... Be7 {[%clk 0:02:57.8]} 7.
d5 {[%clk 0:02:43.9]} 7... O-O {[%clk 0:02:54.5]} 8. Ng3 {[%clk 0:02:32]} 8...
a5 {[%clk 0:02:53.5]} 9. Be2 {[%clk 0:02:22.7]} 9... Bc5 {[%clk 0:02:52.1]} 10.
O-O {[%clk 0:02:12.2]} 10... Qe7 {[%clk 0:02:43.6]} 11. e4 {[%clk 0:02:01.3]}
11... h6 {[%clk 0:02:43.7]} 12. Kh1 {[%clk 0:01:31.1]} 12... Ne8 {[%clk
0:02:40.9]} 13. f4 {[%clk 0:01:28.6]} 13... f5 {[%clk 0:02:39.7]} 14. e5 {[%clk
0:01:25.8]} 14... d6 {[%clk 0:02:36.1]} 15. Bf3 {[%clk 0:01:13.7]} 15... dxe5
{[%clk 0:02:30.9]} 16. fxe5 {[%clk 0:01:11.7]} 16... Na6 {[%clk 0:02:16.7]} 17.
d6 {[%clk 0:01:01.8]} 17... cxd6 {[%clk 0:02:17.6]} 18. exd6 {[%clk 0:00:49.5]}
18... Nxd6 {[%clk 0:02:17.6]} 19. Bxb7 {[%clk 0:00:35.7]} 19... Qxb7 {[%clk
0:02:18.5]} 20. Qe2 {[%clk 0:00:33.6]} 20... Rae8 {[%clk 0:02:18.7]} 21. Nh5
{[%clk 0:00:19.5]} 21... Ne4 {[%clk 0:02:11.3]} 22. Nxe4 {[%clk 0:00:18.6]}
22... Qxe4 {[%clk 0:02:12.2]} 23. Qxe4 {[%clk 0:00:18.5]} 23... fxe4 {[%clk
0:02:13.1]} 24. Ng3 {[%clk 0:00:18.3]} 24... e3 {[%clk 0:02:08.5]} 25. Re1
{[%clk 0:00:17.7]} 25... Rf2 {[%clk 0:02:00.6]} 26. Bxe3 {[%clk 0:00:17.8]}
26... Bxe3 {[%clk 0:02:01.5]} 27. Rxe3 {[%clk 0:00:18.4]} 27... Rxb2 {[%clk
0:02:02.2]} 28. Rae1 {[%clk 0:00:18.4]} 28... Nc5 {[%clk 0:02:01]} 29. h3 {[%clk
0:00:18.5]} 29... Rf8 {[%clk 0:01:56.4]} 30. Kh2 {[%clk 0:00:18.4]} 30... Rff2
{[%clk 0:01:56.6]} 31. R1e2 {[%clk 0:00:15.6]} 31... Rfxe2 {[%clk 0:01:56.2]}
32. Nxe2 {[%clk 0:00:15]} 32... Rc2 {[%clk 0:01:56.7]} 33. Nf4 {[%clk
0:00:14.1]} 33... Kf7 {[%clk 0:01:55.2]} 34. Rf3 {[%clk 0:00:14]} 34... Ke8
{[%clk 0:01:50.2]} 35. Re3 {[%clk 0:00:12.8]} 35... Kd7 {[%clk 0:01:50.2]} 36.
Rg3 {[%clk 0:00:10.8]} 36... g5 {[%clk 0:01:48.9]} 37. Ng6 {[%clk 0:00:10.7]}
37... Rxc4 {[%clk 0:01:47]} 38. Ne5+ {[%clk 0:00:10.7]} 38... Kc7 {[%clk
0:01:41]} 39. Nxc4 {[%clk 0:00:11.6]} 39... a4 {[%clk 0:01:41.9]} 40. Nd2 {[%clk
0:00:11.8]} 40... b5 {[%clk 0:01:42.4]} 41. Re3 {[%clk 0:00:11.3]} 41... Kd6
{[%clk 0:01:42.7]} 42. Ne4+ {[%clk 0:00:11.3]} 42... Nxe4 {[%clk 0:01:43.3]} 43.
Rxe4 {[%clk 0:00:11.9]} 43... e5 {[%clk 0:01:42.8]} 44. Rb4 {[%clk 0:00:12]}
44... Kd5 {[%clk 0:01:43.7]} 45. Kg3 {[%clk 0:00:11.9]} 45... Kc5 {[%clk
0:01:44.6]} 46. Kf2 {[%clk 0:00:12]} 46... Kc6 {[%clk 0:01:44.1]} 47. Ke3 {[%clk
0:00:12.2]} 47... h5 {[%clk 0:01:44.4]} 48. Ke4 {[%clk 0:00:12]} 48... Kc5
{[%clk 0:01:45]} 49. Kxe5 {[%clk 0:00:11.5]} 49... g4 {[%clk 0:01:45.9]} 50.
hxg4 {[%clk 0:00:11.5]} 50... hxg4 {[%clk 0:01:46.8]} 51. Kf4 {[%clk 0:00:11.8]}
51... g3 {[%clk 0:01:46.3]} 52. Kxg3 {[%clk 0:00:12]} 52... Kc6 {[%clk
0:01:47.2]} 53. Kf4 {[%clk 0:00:11.8]} 53... Kc5 {[%clk 0:01:48.1]} 54. g4
{[%clk 0:00:11.9]} 54... Kc6 {[%clk 0:01:49]} 55. g5 {[%clk 0:00:12.5]} 55...
Kc5 {[%clk 0:01:49.9]} 56. g6 {[%clk 0:00:12.9]} 56... Kc6 {[%clk 0:01:50.8]}
57. g7 {[%clk 0:00:13]} 57... Kc5 {[%clk 0:01:51.7]} 58. g8=Q {[%clk 0:00:13.3]}
58... Kc6 {[%clk 0:01:52.6]} 59. Qc8+ {[%clk 0:00:13]} 59... Kb6 {[%clk
0:01:52.6]} 60. Qd8+ {[%clk 0:00:12.3]} 60... Ka6 {[%clk 0:01:52.7]} 61. Qd6+
{[%clk 0:00:12]} 61... Ka5 {[%clk 0:01:52.6]} 62. Qc7+ {[%clk 0:00:12.1]} 62...
Ka6 {[%clk 0:01:53]} 63. Qc6+ {[%clk 0:00:12.5]} 63... Ka7 {[%clk 0:01:53.2]}
64. Qxb5 {[%clk 0:00:12.7]} 64... Ka8 {[%clk 0:01:53.4]} 65. Qb7# {[%clk
0:00:13.3]} 1-0

[Event "*** SCC Grand Prix: Titled Tuesday Blitz"]
[Site "Chess.com"]
[Date "2020.08.25"]
[Round "2"]
[White "Artem_Sadovsky"]
[Black "wonderfultime"]
[Result "0-1"]
[WhiteElo "2550"]
[BlackElo "2891"]
[TimeControl "180+1"]
[EndTime "10:18:56 PDT"]
[Termination "wonderfultime won on time"]

1. Nf3 {[%clk 0:03:00.4]} 1... Nf6 {[%clk 0:02:52]} 2. g3 {[%clk 0:03:00.4]}
2... d5 {[%clk 0:02:43.8]} 3. Bg2 {[%clk 0:03:00.5]} 3... c6 {[%clk 0:02:42.3]}
4. O-O {[%clk 0:03:00.7]} 4... Bg4 {[%clk 0:02:43]} 5. b3 {[%clk 0:02:57.7]}
5... e6 {[%clk 0:02:43.3]} 6. Bb2 {[%clk 0:02:57.3]} 6... Nbd7 {[%clk
0:02:43.8]} 7. c4 {[%clk 0:02:57.6]} 7... Bd6 {[%clk 0:02:43.9]} 8. d3 {[%clk
0:02:57.6]} 8... O-O {[%clk 0:02:44.1]} 9. Nbd2 {[%clk 0:02:56.2]} 9... Qe7
{[%clk 0:02:44.4]} 10. Qc2 {[%clk 0:02:56.3]} 10... a5 {[%clk 0:02:43.1]} 11. a3
{[%clk 0:02:56.3]} 11... Rfd8 {[%clk 0:02:39.6]} 12. Ra2 {[%clk 0:02:33.1]}
12... h6 {[%clk 0:02:35.8]} 13. Qb1 {[%clk 0:02:31]} 13... e5 {[%clk 0:02:34.9]}
14. cxd5 {[%clk 0:02:30.2]} 14... cxd5 {[%clk 0:02:33.7]} 15. e4 {[%clk
0:02:30.1]} 15... d4 {[%clk 0:02:25.7]} 16. Nc4 {[%clk 0:02:27.2]} 16... b5
{[%clk 0:02:25.2]} 17. Nxd6 {[%clk 0:02:24.6]} 17... Qxd6 {[%clk 0:02:26.1]} 18.
Rc1 {[%clk 0:02:05.7]} 18... Be6 {[%clk 0:02:20.9]} 19. Ba1 {[%clk 0:01:53.3]}
19... a4 {[%clk 0:02:19]} 20. Rac2 {[%clk 0:01:22.6]} 20... axb3 {[%clk
0:02:12.1]} 21. Rc6 {[%clk 0:01:20.2]} 21... Qxa3 {[%clk 0:02:12.4]} 22. Bb2
{[%clk 0:01:12.2]} 22... Qa2 {[%clk 0:02:11.4]} 23. Bf1 {[%clk 0:00:56]} 23...
Qxb1 {[%clk 0:02:05.8]} 24. Rxb1 {[%clk 0:00:55.3]} 24... Rdc8 {[%clk
0:02:06.7]} 25. Rxc8+ {[%clk 0:00:51.6]} 25... Rxc8 {[%clk 0:02:07.6]} 26. Be2
{[%clk 0:00:49.7]} 26... Rc2 {[%clk 0:01:42.1]} 27. Bd1 {[%clk 0:00:47.4]} 27...
Bg4 {[%clk 0:01:42.6]} 28. Bxc2 {[%clk 0:00:27.3]} 28... bxc2 {[%clk 0:01:41.7]}
29. Rc1 {[%clk 0:00:28.2]} 29... Bxf3 {[%clk 0:01:41.7]} 30. Rxc2 {[%clk
0:00:29.1]} 30... g5 {[%clk 0:01:33.2]} 31. Kf1 {[%clk 0:00:28.9]} 31... Bd1
{[%clk 0:01:22.1]} 32. Rc7 {[%clk 0:00:28.3]} 32... g4 {[%clk 0:01:15.7]} 33.
Rb7 {[%clk 0:00:27.1]} 33... Nc5 {[%clk 0:01:15]} 34. Rxb5 {[%clk 0:00:26.7]}
34... Nxd3 {[%clk 0:01:15.5]} 35. Ba3 {[%clk 0:00:23.2]} 35... Nxe4 {[%clk
0:01:14.5]} 36. Rb8+ {[%clk 0:00:17.7]} 36... Kh7 {[%clk 0:01:13.6]} 37. Rb7
{[%clk 0:00:10.3]} 37... Ng5 {[%clk 0:01:13.2]} 38. Be7 {[%clk 0:00:07.8]} 38...
Bf3 {[%clk 0:01:09.5]} 39. Rd7 {[%clk 0:00:07.6]} 39... Kg6 {[%clk 0:01:07.7]}
40. Rd6+ {[%clk 0:00:03.9]} 40... Ne6 {[%clk 0:01:07.7]} 41. Bh4 {[%clk
0:00:02.3]} 41... Nc5 {[%clk 0:01:05.3]} 42. Rc6 {[%clk 0:00:02.5]} 42... Bxc6
{[%clk 0:01:05.2]} 0-1

[Event "*** SCC Grand Prix: Titled Tuesday Blitz"]
[Site "Chess.com"]
[Date "2020.08.25"]
[Round "2"]
[White "kleopl"]
[Black "ViktoriyaTarasova"]
[Result "1-0"]
[WhiteElo "2451"]
[BlackElo "2227"]
[TimeControl "180+1"]
[EndTime "10:18:57 PDT"]
[Termination "kleopl won by checkmate"]

1. c4 {[%clk 0:03:00.9]} 1... c5 {[%clk 0:02:54.9]} 2. Nf3 {[%clk 0:03:00.4]}
2... Nc6 {[%clk 0:02:52.2]} 3. Nc3 {[%clk 0:03:00.3]} 3... e5 {[%clk 0:02:46.8]}
4. e3 {[%clk 0:02:58.1]} 4... Nf6 {[%clk 0:02:45.7]} 5. d4 {[%clk 0:02:57.1]}
5... e4 {[%clk 0:02:41.7]} 6. Ng5 {[%clk 0:02:54]} 6... cxd4 {[%clk 0:02:39.2]}
7. exd4 {[%clk 0:02:52.2]} 7... Bb4 {[%clk 0:02:39.3]} 8. d5 {[%clk 0:02:45.1]}
8... Bxc3+ {[%clk 0:02:30.3]} 9. bxc3 {[%clk 0:02:46]} 9... Na5 {[%clk
0:02:16.6]} 10. Qd4 {[%clk 0:02:41.3]} 10... O-O {[%clk 0:02:11.1]} 11. Be2
{[%clk 0:02:37.6]} 11... Re8 {[%clk 0:01:47.7]} 12. d6 {[%clk 0:02:18]} 12... b6
{[%clk 0:01:36.6]} 13. O-O {[%clk 0:02:12.6]} 13... Ba6 {[%clk 0:01:34.1]} 14.
Nh3 {[%clk 0:01:33.8]} 14... Rc8 {[%clk 0:01:29.7]} 15. Bg5 {[%clk 0:01:33.7]}
15... Bxc4 {[%clk 0:01:28.7]} 16. Bxc4 {[%clk 0:01:32.4]} 16... Rxc4 {[%clk
0:01:28.3]} 17. Qd2 {[%clk 0:01:30.3]} 17... h6 {[%clk 0:01:18.1]} 18. Bh4
{[%clk 0:01:30]} 18... Rc5 {[%clk 0:01:04.7]} 19. Qd4 {[%clk 0:01:21.3]} 19...
Nc6 {[%clk 0:00:52.1]} 20. Qa4 {[%clk 0:01:16.9]} 20... g5 {[%clk 0:00:47]} 21.
Bg3 {[%clk 0:01:15.8]} 21... Nh5 {[%clk 0:00:46.8]} 22. Rad1 {[%clk 0:00:37]}
22... f5 {[%clk 0:00:43.9]} 23. f4 {[%clk 0:00:36.8]} 23... exf3 {[%clk
0:00:34.7]} 24. Rxf3 {[%clk 0:00:31]} 24... g4 {[%clk 0:00:23.9]} 25. Rxf5
{[%clk 0:00:31.1]} 25... Rxf5 {[%clk 0:00:22.4]} 26. Qxg4+ {[%clk 0:00:30.9]}
26... Rg5 {[%clk 0:00:22.9]} 27. Nxg5 {[%clk 0:00:30.8]} 27... Qxg5 {[%clk
0:00:22.7]} 28. Qc4+ {[%clk 0:00:31]} 28... Kh8 {[%clk 0:00:20.3]} 29. Qf7
{[%clk 0:00:28.6]} 29... Rg8 {[%clk 0:00:19]} 30. Qxd7 {[%clk 0:00:27.1]} 30...
Nxg3 {[%clk 0:00:18.7]} 31. hxg3 {[%clk 0:00:27.6]} 31... Ne5 {[%clk 0:00:17.4]}
32. Qh3 {[%clk 0:00:25.3]} 32... Qe3+ {[%clk 0:00:13.7]} 33. Kh1 {[%clk
0:00:24.4]} 33... Qe2 {[%clk 0:00:13.8]} 34. Qxh6# {[%clk 0:00:23.8]} 1-0

[Event "*** SCC Grand Prix: Titled Tuesday Blitz"]
[Site "Chess.com"]
[Date "2020.08.25"]
[Round "2"]
[White "LiemLe"]
[Black "EddieMarsalla"]
[Result "1-0"]
[WhiteElo "2934"]
[BlackElo "2557"]
[TimeControl "180+1"]
[EndTime "10:18:58 PDT"]
[Termination "LiemLe won by resignation"]

1. d4 {[%clk 0:03:00.9]} 1... d5 {[%clk 0:02:59.5]} 2. Bf4 {[%clk 0:02:59.5]}
2... Bf5 {[%clk 0:02:59.7]} 3. e3 {[%clk 0:02:58]} 3... e6 {[%clk 0:02:59.9]} 4.
Nf3 {[%clk 0:02:57.5]} 4... c6 {[%clk 0:02:58]} 5. c4 {[%clk 0:02:56.1]} 5...
Bxb1 {[%clk 0:02:54.2]} 6. Rxb1 {[%clk 0:02:52.2]} 6... Qa5+ {[%clk 0:02:52.6]}
7. Nd2 {[%clk 0:02:52.1]} 7... Bb4 {[%clk 0:02:38.9]} 8. a3 {[%clk 0:02:50.7]}
8... Bxd2+ {[%clk 0:02:38.9]} 9. Qxd2 {[%clk 0:02:51.6]} 9... Qxd2+ {[%clk
0:02:38.5]} 10. Kxd2 {[%clk 0:02:52.5]} 10... Nf6 {[%clk 0:02:38.8]} 11. Bd3
{[%clk 0:02:46.3]} 11... Nbd7 {[%clk 0:02:38.7]} 12. Rhc1 {[%clk 0:02:35.6]}
12... h6 {[%clk 0:02:36.2]} 13. h3 {[%clk 0:02:31.1]} 13... O-O {[%clk
0:02:35.4]} 14. b4 {[%clk 0:02:30.6]} 14... a6 {[%clk 0:02:33.1]} 15. a4 {[%clk
0:02:10]} 15... Rfe8 {[%clk 0:02:32.4]} 16. cxd5 {[%clk 0:02:01.8]} 16... Nxd5
{[%clk 0:02:26.1]} 17. Bg3 {[%clk 0:01:55.3]} 17... e5 {[%clk 0:02:26]} 18. Bf5
{[%clk 0:01:48.4]} 18... N5f6 {[%clk 0:01:26.4]} 19. dxe5 {[%clk 0:01:46.8]}
19... Nxe5 {[%clk 0:01:25.1]} 20. Ke2 {[%clk 0:01:47.3]} 20... Rad8 {[%clk
0:01:21.6]} 21. b5 {[%clk 0:01:44.9]} 21... axb5 {[%clk 0:01:20.7]} 22. axb5
{[%clk 0:01:45.8]} 22... g6 {[%clk 0:01:21.6]} 23. Bc2 {[%clk 0:01:43.1]} 23...
Nd5 {[%clk 0:01:17.6]} 24. Bb3 {[%clk 0:01:40.8]} 24... Kg7 {[%clk 0:01:07.3]}
25. bxc6 {[%clk 0:01:34.7]} 25... bxc6 {[%clk 0:01:06.1]} 26. Bxe5+ {[%clk
0:01:20.4]} 26... Rxe5 {[%clk 0:01:07]} 27. Rxc6 {[%clk 0:01:20.9]} 27... Rb8
{[%clk 0:00:41.5]} 28. Bc2 {[%clk 0:01:15.3]} 28... Nb4 {[%clk 0:00:34]} 29. Rc7
{[%clk 0:01:08]} 29... Reb5 {[%clk 0:00:32.3]} 30. Be4 {[%clk 0:01:04.1]} 30...
Nd5 {[%clk 0:00:28.5]} 31. Rxb5 {[%clk 0:01:01.2]} 31... Rxb5 {[%clk 0:00:29.4]}
32. Rc2 {[%clk 0:00:57.8]} 32... Ra5 {[%clk 0:00:27.9]} 33. g3 {[%clk
0:00:55.8]} 33... Kf6 {[%clk 0:00:27.9]} 34. Kf3 {[%clk 0:00:55.2]} 34... Ke5
{[%clk 0:00:26.6]} 35. Rc8 {[%clk 0:00:43.9]} 35... f5 {[%clk 0:00:23.6]} 36.
Bxd5 {[%clk 0:00:41.6]} 36... Rxd5 {[%clk 0:00:24.5]} 37. Rc6 {[%clk 0:00:41.4]}
37... g5 {[%clk 0:00:17.1]} 38. Rxh6 {[%clk 0:00:42.3]} 38... Ra5 {[%clk
0:00:18]} 39. g4 {[%clk 0:00:41.8]} 39... fxg4+ {[%clk 0:00:16.4]} 40. hxg4
{[%clk 0:00:42.7]} 40... Ra8 {[%clk 0:00:15.5]} 41. Rg6 {[%clk 0:00:42.1]} 41...
Rf8+ {[%clk 0:00:15.6]} 42. Kg3 {[%clk 0:00:41.8]} 1-0

[Event "*** SCC Grand Prix: Titled Tuesday Blitz"]
[Site "Chess.com"]
[Date "2020.08.25"]
[Round "2"]
[White "Mr_Sinigami"]
[Black "BogdanDeac"]
[Result "0-1"]
[WhiteElo "2532"]
[BlackElo "2850"]
[TimeControl "180+1"]
[EndTime "10:18:58 PDT"]
[Termination "BogdanDeac won on time"]

1. d4 {[%clk 0:02:21.8]} 1... Nf6 {[%clk 0:02:58.2]} 2. Nf3 {[%clk 0:02:20.2]}
2... d5 {[%clk 0:02:57.8]} 3. Bf4 {[%clk 0:02:20.4]} 3... c5 {[%clk 0:02:57.3]}
4. e3 {[%clk 0:02:20.8]} 4... Nc6 {[%clk 0:02:57.8]} 5. c3 {[%clk 0:02:20.5]}
5... Qb6 {[%clk 0:02:56.7]} 6. Qc1 {[%clk 0:02:20]} 6... Bf5 {[%clk 0:02:49.8]}
7. Nbd2 {[%clk 0:02:19.3]} 7... Rc8 {[%clk 0:02:49.1]} 8. a3 {[%clk 0:01:57.5]}
8... Nh5 {[%clk 0:02:25.3]} 9. Be5 {[%clk 0:01:39.8]} 9... f6 {[%clk 0:01:43.8]}
10. Bg3 {[%clk 0:01:38.8]} 10... cxd4 {[%clk 0:01:43.3]} 11. exd4 {[%clk
0:01:35.8]} 11... e5 {[%clk 0:01:23.6]} 12. Be2 {[%clk 0:01:01.1]} 12... exd4
{[%clk 0:00:40.7]} 13. Nh4 {[%clk 0:01:00.4]} 13... Bg6 {[%clk 0:00:40.7]} 14.
Qd1 {[%clk 0:00:44.7]} 14... Nxg3 {[%clk 0:00:30]} 15. hxg3 {[%clk 0:00:44.4]}
15... Bf7 {[%clk 0:00:30]} 16. Bg4 {[%clk 0:00:36.9]} 16... Rd8 {[%clk
0:00:27.8]} 17. O-O {[%clk 0:00:20.7]} 17... Be7 {[%clk 0:00:23.9]} 18. Re1
{[%clk 0:00:10]} 18... g6 {[%clk 0:00:20.6]} 19. Be6 {[%clk 0:00:05]} 19... Rd6
{[%clk 0:00:13.9]} 20. Bxf7+ {[%clk 0:00:04.6]} 20... Kxf7 {[%clk 0:00:14.8]}
21. Qf3 {[%clk 0:00:04]} 21... Qxb2 {[%clk 0:00:12.2]} 22. Red1 {[%clk
0:00:01.5]} 22... Qxc3 {[%clk 0:00:10]} 0-1